[Event "*** Titled Tuesday Blitz"]
[Site "Chess.com"]
[Date "2020.04.07"]
[Round "4"]
[White "Kobalia"]
[Black "GeorgMeier"]
[Result "0-1"]
[WhiteElo "2603"]
[BlackElo "3003"]
[TimeControl "180+1"]
[EndTime "13:41:59 PDT"]
[Termination "GeorgMeier won on time"]

1. e4 {[%clk 0:03:00.9]} 1... e6 {[%clk 0:03:00.1]} 2. d4 {[%clk 0:02:59.7]}
2... d5 {[%clk 0:03:00.3]} 3. exd5 {[%clk 0:03:00.3]} 3... exd5 {[%clk
0:03:00.4]} 4. Nf3 {[%clk 0:03:01.2]} 4... Bf5 {[%clk 0:02:57.1]} 5. Bd3 {[%clk
0:02:58.8]} 5... Ne7 {[%clk 0:02:56.7]} 6. O-O {[%clk 0:02:58.3]} 6... Nbc6
{[%clk 0:02:54.9]} 7. Re1 {[%clk 0:02:56.7]} 7... Qd7 {[%clk 0:02:54.9]} 8. b3
{[%clk 0:02:40.9]} 8... O-O-O {[%clk 0:02:53.8]} 9. Ba3 {[%clk 0:02:40.2]} 9...
Ng6 {[%clk 0:02:51.4]} 10. Bxf8 {[%clk 0:02:37.4]} 10... Rhxf8 {[%clk
0:02:50.6]} 11. Nc3 {[%clk 0:02:25.9]} 11... Rfe8 {[%clk 0:02:40.1]} 12. Rxe8
{[%clk 0:02:23.4]} 12... Rxe8 {[%clk 0:02:40.3]} 13. Bxf5 {[%clk 0:02:15.1]}
13... Qxf5 {[%clk 0:02:39.5]} 14. Qd2 {[%clk 0:02:16]} 14... Nf4 {[%clk
0:02:31.2]} 15. Re1 {[%clk 0:02:03.7]} 15... Rxe1+ {[%clk 0:02:09.8]} 16. Nxe1
{[%clk 0:02:03.5]} 16... g5 {[%clk 0:02:00]} 17. g3 {[%clk 0:02:02.9]} 17... Ne6
{[%clk 0:01:57.4]} 18. Ne2 {[%clk 0:02:00.2]} 18... h5 {[%clk 0:01:43.5]} 19. c3
{[%clk 0:01:58.8]} 19... h4 {[%clk 0:01:43.8]} 20. Qd3 {[%clk 0:01:57.7]} 20...
Ne7 {[%clk 0:01:43.1]} 21. Qxf5 {[%clk 0:01:48.8]} 21... Nxf5 {[%clk 0:01:44]}
22. g4 {[%clk 0:01:44.2]} 22... Nd6 {[%clk 0:01:42.9]} 23. f3 {[%clk 0:01:44.3]}
23... a5 {[%clk 0:01:36.8]} 24. Nd3 {[%clk 0:01:43.2]} 24... f6 {[%clk
0:01:37.1]} 25. Kf2 {[%clk 0:01:40.8]} 25... b6 {[%clk 0:01:36.5]} 26. Ke3
{[%clk 0:01:40.3]} 26... Kd7 {[%clk 0:01:34.9]} 27. c4 {[%clk 0:01:39.7]} 27...
dxc4 {[%clk 0:01:32.7]} 28. Nb2 {[%clk 0:01:29.7]} 28... cxb3 {[%clk 0:01:30.5]}
29. axb3 {[%clk 0:01:28.9]} 29... c6 {[%clk 0:01:30.8]} 30. Nc3 {[%clk
0:01:26.8]} 30... Nc7 {[%clk 0:01:30.9]} 31. Nba4 {[%clk 0:01:22.7]} 31... Nc8
{[%clk 0:01:24]} 32. Ke4 {[%clk 0:01:19.9]} 32... Ke6 {[%clk 0:01:19.7]} 33. f4
{[%clk 0:01:18.6]} 33... Nd5 {[%clk 0:01:18.5]} 34. fxg5 {[%clk 0:01:07.9]}
34... fxg5 {[%clk 0:01:14.3]} 35. Nxd5 {[%clk 0:01:01.2]} 35... cxd5+ {[%clk
0:01:12.6]} 36. Kd3 {[%clk 0:01:02.1]} 36... h3 {[%clk 0:00:58.2]} 37. Ke3
{[%clk 0:00:56.6]} 37... Kd7 {[%clk 0:00:51.2]} 38. Kd3 {[%clk 0:00:41.9]} 38...
Kc6 {[%clk 0:00:50.5]} 39. Nc3 {[%clk 0:00:41.2]} 39... Nd6 {[%clk 0:00:49]} 40.
Ne2 {[%clk 0:00:37.6]} 40... Ne4 {[%clk 0:00:48.4]} 41. Ng1 {[%clk 0:00:37.5]}
41... Nf2+ {[%clk 0:00:40.2]} 42. Kc3 {[%clk 0:00:37.4]} 42... b5 {[%clk
0:00:34.9]} 43. Nf3 {[%clk 0:00:36.2]} 43... Ne4+ {[%clk 0:00:31.8]} 44. Kc2
{[%clk 0:00:33.9]} 44... a4 {[%clk 0:00:30.8]} 45. bxa4 {[%clk 0:00:33]} 45...
bxa4 {[%clk 0:00:31.7]} 46. Ng1 {[%clk 0:00:33.2]} 46... Kb5 {[%clk 0:00:25.8]}
47. Nxh3 {[%clk 0:00:32.8]} 47... Kc4 {[%clk 0:00:26.4]} 48. Ng1 {[%clk
0:00:33]} 48... Kxd4 {[%clk 0:00:26.8]} 49. h4 {[%clk 0:00:31.2]} 49... gxh4
{[%clk 0:00:21.7]} 50. Nf3+ {[%clk 0:00:30.5]} 50... Kc4 {[%clk 0:00:22]} 51.
Nxh4 {[%clk 0:00:31.4]} 51... d4 {[%clk 0:00:22.5]} 52. Nf3 {[%clk 0:00:28.2]}
52... d3+ {[%clk 0:00:21.8]} 53. Kb2 {[%clk 0:00:28.6]} 53... Kb4 {[%clk
0:00:12.8]} 54. g5 {[%clk 0:00:17.3]} 54... a3+ {[%clk 0:00:13]} 55. Ka2 {[%clk
0:00:17.2]} 55... Nxg5 {[%clk 0:00:13.4]} 56. Nd2 {[%clk 0:00:12.5]} 56... Ne6
{[%clk 0:00:12.1]} 57. Nb1 {[%clk 0:00:12.2]} 57... Nd4 {[%clk 0:00:08.8]} 58.
Nd2 {[%clk 0:00:10.6]} 58... Nb5 {[%clk 0:00:08.4]} 59. Nb1 {[%clk 0:00:10.6]}
59... Nc3+ {[%clk 0:00:08.4]} 0-1

[Event "*** Titled Tuesday Blitz"]
[Site "Chess.com"]
[Date "2020.04.07"]
[Round "4"]
[White "Agent-JL"]
[Black "bangchess21"]
[Result "0-1"]
[WhiteElo "2418"]
[BlackElo "2647"]
[TimeControl "180+1"]
[EndTime "13:41:59 PDT"]
[Termination "bangchess21 won on time"]

1. Nf3 {[%clk 0:03:00.9]} 1... c5 {[%clk 0:02:59.7]} 2. b3 {[%clk 0:02:57.4]}
2... d6 {[%clk 0:02:57.8]} 3. Bb2 {[%clk 0:02:57.8]} 3... Nc6 {[%clk 0:02:57.8]}
4. e3 {[%clk 0:02:55.1]} 4... e5 {[%clk 0:02:55.6]} 5. d3 {[%clk 0:02:55.5]}
5... g6 {[%clk 0:02:55.4]} 6. g3 {[%clk 0:02:55.9]} 6... Bg7 {[%clk 0:02:55.9]}
7. Bg2 {[%clk 0:02:56.8]} 7... Nge7 {[%clk 0:02:56.2]} 8. O-O {[%clk 0:02:57.7]}
8... h6 {[%clk 0:02:47.1]} 9. Nbd2 {[%clk 0:02:56.6]} 9... Be6 {[%clk
0:02:47.3]} 10. c4 {[%clk 0:02:44.8]} 10... Qd7 {[%clk 0:02:47.1]} 11. a3 {[%clk
0:02:43.7]} 11... O-O {[%clk 0:02:36.2]} 12. Qc2 {[%clk 0:02:39.8]} 12... Rac8
{[%clk 0:02:31.1]} 13. Bh1 {[%clk 0:02:34.8]} 13... b6 {[%clk 0:02:28.6]} 14.
Rfd1 {[%clk 0:02:26.8]} 14... d5 {[%clk 0:02:25.3]} 15. cxd5 {[%clk 0:02:26.7]}
15... Nxd5 {[%clk 0:02:13.5]} 16. Nc4 {[%clk 0:02:22.5]} 16... Qc7 {[%clk
0:02:13.2]} 17. Rac1 {[%clk 0:02:21.4]} 17... Kh7 {[%clk 0:02:06.2]} 18. Ne1
{[%clk 0:02:04.5]} 18... Qb8 {[%clk 0:02:03.7]} 19. Qe2 {[%clk 0:02:00.7]} 19...
Nde7 {[%clk 0:01:57.8]} 20. Bg2 {[%clk 0:01:42.4]} 20... Rfd8 {[%clk 0:01:57]}
21. f4 {[%clk 0:01:39.4]} 21... Bd5 {[%clk 0:01:37.1]} 22. fxe5 {[%clk
0:01:29.5]} 22... Nxe5 {[%clk 0:01:32.2]} 23. Bxd5 {[%clk 0:01:14.4]} 23... Nxd5
{[%clk 0:01:31.2]} 24. Ng2 {[%clk 0:01:11.9]} 24... Re8 {[%clk 0:01:26.3]} 25.
Nxe5 {[%clk 0:01:02.6]} 25... Bxe5 {[%clk 0:01:25.7]} 26. Bxe5 {[%clk
0:00:52.5]} 26... Qxe5 {[%clk 0:01:25.7]} 27. Qf3 {[%clk 0:00:49.1]} 27... Kg7
{[%clk 0:01:12.2]} 28. Re1 {[%clk 0:00:28.7]} 28... Qe6 {[%clk 0:01:03.5]} 29.
Rc4 {[%clk 0:00:20.4]} 29... Qd7 {[%clk 0:00:49.9]} 30. d4 {[%clk 0:00:17.5]}
30... Nf6 {[%clk 0:00:38.5]} 31. Rd1 {[%clk 0:00:11.1]} 31... Red8 {[%clk
0:00:35.7]} 32. Nf4 {[%clk 0:00:07.5]} 32... b5 {[%clk 0:00:33.8]} 33. Rcc1
{[%clk 0:00:06.1]} 33... cxd4 {[%clk 0:00:25.3]} 34. Rxc8 {[%clk 0:00:06.1]}
34... Qxc8 {[%clk 0:00:21.5]} 35. exd4 {[%clk 0:00:04.9]} 35... Qc2 {[%clk
0:00:21.7]} 36. Qd3 {[%clk 0:00:04.9]} 36... Qxd3 {[%clk 0:00:18.8]} 37. Rxd3
{[%clk 0:00:05.8]} 37... Nd5 {[%clk 0:00:19.7]} 38. Nxd5 {[%clk 0:00:05.8]}
38... Rxd5 {[%clk 0:00:19.5]} 39. Kf2 {[%clk 0:00:06.7]} 39... f5 {[%clk
0:00:19.4]} 40. Ke3 {[%clk 0:00:06.5]} 40... Kf6 {[%clk 0:00:17.2]} 41. Rc3
{[%clk 0:00:07.1]} 41... Rd6 {[%clk 0:00:17.6]} 42. Rc7 {[%clk 0:00:07.5]} 42...
a6 {[%clk 0:00:17.8]} 43. Rh7 {[%clk 0:00:07.6]} 43... h5 {[%clk 0:00:17.5]} 44.
Rb7 {[%clk 0:00:08.2]} 44... g5 {[%clk 0:00:17.1]} 45. a4 {[%clk 0:00:07.5]}
45... bxa4 {[%clk 0:00:16.7]} 46. bxa4 {[%clk 0:00:08.4]} 46... Re6+ {[%clk
0:00:17.4]} 47. Kd3 {[%clk 0:00:08.5]} 47... h4 {[%clk 0:00:15.4]} 48. gxh4
{[%clk 0:00:07.6]} 48... gxh4 {[%clk 0:00:16.3]} 49. a5 {[%clk 0:00:06.9]} 49...
Kg5 {[%clk 0:00:15.8]} 50. Rb6 {[%clk 0:00:06.8]} 50... Re8 {[%clk 0:00:13.3]}
51. Rxa6 {[%clk 0:00:07.2]} 51... f4 {[%clk 0:00:14.2]} 52. Rb6 {[%clk
0:00:06.4]} 52... f3 {[%clk 0:00:14.1]} 53. a6 {[%clk 0:00:06.2]} 53... f2
{[%clk 0:00:13.4]} 54. Rb1 {[%clk 0:00:02.7]} 54... Re1 {[%clk 0:00:13.1]} 0-1

[Event "*** Titled Tuesday Blitz"]
[Site "Chess.com"]
[Date "2020.04.07"]
[Round "4"]
[White "flomarechot"]
[Black "MrrRefrao"]
[Result "1-0"]
[WhiteElo "2182"]
[BlackElo "2411"]
[TimeControl "180+1"]
[EndTime "13:42:00 PDT"]
[Termination "flomarechot won on time"]

1. Nf3 {[%clk 0:03:00.9]} 1... d5 {[%clk 0:02:57.6]} 2. b3 {[%clk 0:03:00.4]}
2... Nf6 {[%clk 0:02:56.4]} 3. Bb2 {[%clk 0:03:00.4]} 3... e6 {[%clk 0:02:55]}
4. e3 {[%clk 0:02:58.9]} 4... Be7 {[%clk 0:02:54.9]} 5. c4 {[%clk 0:02:59]} 5...
O-O {[%clk 0:02:53]} 6. Be2 {[%clk 0:02:59.2]} 6... c5 {[%clk 0:02:52.2]} 7. O-O
{[%clk 0:02:59.2]} 7... Nc6 {[%clk 0:02:51.5]} 8. cxd5 {[%clk 0:02:59.5]} 8...
Nxd5 {[%clk 0:02:49.3]} 9. d4 {[%clk 0:02:59.8]} 9... Bf6 {[%clk 0:02:39.1]} 10.
e4 {[%clk 0:02:54.6]} 10... Nf4 {[%clk 0:02:37.4]} 11. e5 {[%clk 0:02:54.5]}
11... Nxe2+ {[%clk 0:02:29.9]} 12. Qxe2 {[%clk 0:02:55.4]} 12... Be7 {[%clk
0:02:30.2]} 13. Rd1 {[%clk 0:02:54.1]} 13... cxd4 {[%clk 0:02:11.9]} 14. Nxd4
{[%clk 0:02:53.9]} 14... Qa5 {[%clk 0:02:04.9]} 15. Qb5 {[%clk 0:02:14.5]} 15...
a6 {[%clk 0:01:46.9]} 16. Qxa5 {[%clk 0:02:13.1]} 16... Nxa5 {[%clk 0:01:46.2]}
17. Ba3 {[%clk 0:02:09.7]} 17... Bxa3 {[%clk 0:01:43.1]} 18. Nxa3 {[%clk
0:02:10.6]} 18... Bd7 {[%clk 0:01:24.1]} 19. Rac1 {[%clk 0:01:48.1]} 19... Rac8
{[%clk 0:01:23.2]} 20. h4 {[%clk 0:01:34.5]} 20... Rfd8 {[%clk 0:01:05.3]} 21.
f3 {[%clk 0:01:34.2]} 21... Be8 {[%clk 0:01:02.4]} 22. Rxc8 {[%clk 0:01:26.4]}
22... Rxc8 {[%clk 0:01:02]} 23. Kf2 {[%clk 0:01:26.4]} 23... b5 {[%clk
0:00:57.4]} 24. Ke3 {[%clk 0:01:20.6]} 24... Kf8 {[%clk 0:00:48.9]} 25. g4
{[%clk 0:01:19.9]} 25... Ke7 {[%clk 0:00:46.8]} 26. f4 {[%clk 0:01:20.1]} 26...
Rc3+ {[%clk 0:00:31.5]} 27. Rd3 {[%clk 0:01:12.6]} 27... Rc1 {[%clk 0:00:30.9]}
28. Rd2 {[%clk 0:01:08.6]} 28... Rg1 {[%clk 0:00:18.8]} 29. Kf3 {[%clk
0:01:03.4]} 29... Nc6 {[%clk 0:00:17.5]} 30. Nac2 {[%clk 0:01:00.6]} 30... Rh1
{[%clk 0:00:13.3]} 31. h5 {[%clk 0:00:59.8]} 31... Rf1+ {[%clk 0:00:12.7]} 32.
Ke3 {[%clk 0:00:57.6]} 32... Rg1 {[%clk 0:00:10.9]} 33. Kf3 {[%clk 0:00:57.8]}
33... f6 {[%clk 0:00:10.5]} 34. exf6+ {[%clk 0:00:57]} 34... gxf6 {[%clk
0:00:10.4]} 35. Re2 {[%clk 0:00:57.5]} 35... e5 {[%clk 0:00:10]} 36. fxe5 {[%clk
0:00:57.7]} 36... fxe5 {[%clk 0:00:09.4]} 37. Nxc6+ {[%clk 0:00:57.2]} 37...
Bxc6+ {[%clk 0:00:08.9]} 38. Kf2 {[%clk 0:00:58.1]} 38... Rg2+ {[%clk
0:00:07.6]} 39. Kf1 {[%clk 0:00:57.5]} 39... Rxg4 {[%clk 0:00:04.5]} 40. Rxe5+
{[%clk 0:00:57.3]} 40... Kf6 {[%clk 0:00:02.2]} 41. Rc5 {[%clk 0:00:57.3]} 41...
Be4 {[%clk 0:00:01.4]} 42. Ne3 {[%clk 0:00:57.3]} 42... Rg5 {[%clk 0:00:01.4]}
43. Rc7 {[%clk 0:00:49.9]} 43... Rxh5 {[%clk 0:00:01.8]} 44. Ng4+ {[%clk
0:00:49.9]} 44... Kg5 {[%clk 0:00:01.2]} 45. Ne3 {[%clk 0:00:50.8]} 45... Rh1+
{[%clk 0:00:02]} 46. Kf2 {[%clk 0:00:51.1]} 46... Rh2+ {[%clk 0:00:02.4]} 47.
Kg3 {[%clk 0:00:50.9]} 47... Rxa2 {[%clk 0:00:03.3]} 48. Re7 {[%clk 0:00:50.5]}
48... Bg6 {[%clk 0:00:04.2]} 49. Re5+ {[%clk 0:00:50.5]} 49... Kh6 {[%clk
0:00:05.1]} 50. Rc5 {[%clk 0:00:51.4]} 50... Rb2 {[%clk 0:00:05.3]} 51. Ng4+
{[%clk 0:00:51.5]} 51... Kg7 {[%clk 0:00:04.8]} 52. Rc7+ {[%clk 0:00:52.4]}
52... Kf8 {[%clk 0:00:05.4]} 53. b4 {[%clk 0:00:50.5]} 53... Rb3+ {[%clk
0:00:05.4]} 54. Kh4 {[%clk 0:00:50.3]} 54... Rxb4 {[%clk 0:00:05.5]} 55. Kg5
{[%clk 0:00:50.8]} 55... Ke8 {[%clk 0:00:06]} 56. Ne5 {[%clk 0:00:50.8]} 56...
Re4 {[%clk 0:00:03.8]} 57. Kf6 {[%clk 0:00:50.5]} 57... Kd8 {[%clk 0:00:02.9]}
58. Ra7 {[%clk 0:00:50.1]} 58... b4 {[%clk 0:00:02.4]} 59. Rxa6 {[%clk
0:00:49.7]} 59... b3 {[%clk 0:00:02.8]} 60. Rb6 {[%clk 0:00:50]} 60... Re3
{[%clk 0:00:02.8]} 61. Ke6 {[%clk 0:00:46.1]} 61... Kc7 {[%clk 0:00:03.1]} 62.
Rb4 {[%clk 0:00:45.8]} 62... Rg3 {[%clk 0:00:01.2]} 63. Kd5 {[%clk 0:00:45.7]}
1-0

[Event "*** Titled Tuesday Blitz"]
[Site "Chess.com"]
[Date "2020.04.07"]
[Round "4"]
[White "youngKID"]
[Black "swayamsm"]
[Result "1/2-1/2"]
[WhiteElo "2815"]
[BlackElo "2587"]
[TimeControl "180+1"]
[EndTime "13:42:01 PDT"]
[Termination "Game drawn by repetition"]

1. Nf3 {[%clk 0:03:00.9]} 1... Nf6 {[%clk 0:02:59.7]} 2. g3 {[%clk 0:03:00.6]}
2... g6 {[%clk 0:02:57.9]} 3. Bg2 {[%clk 0:03:01.5]} 3... Bg7 {[%clk 0:02:58.8]}
4. O-O {[%clk 0:03:01.6]} 4... O-O {[%clk 0:02:59.4]} 5. c4 {[%clk 0:03:02.3]}
5... c5 {[%clk 0:02:59.3]} 6. Nc3 {[%clk 0:03:02.5]} 6... Nc6 {[%clk 0:02:59]}
7. d4 {[%clk 0:03:02.9]} 7... cxd4 {[%clk 0:02:59.9]} 8. Nxd4 {[%clk 0:03:03.4]}
8... Qa5 {[%clk 0:03:00.4]} 9. Nc2 {[%clk 0:03:02.4]} 9... d6 {[%clk 0:02:51.6]}
10. Ne3 {[%clk 0:03:01.7]} 10... Qh5 {[%clk 0:02:48.1]} 11. Ned5 {[%clk
0:02:52.7]} 11... Nxd5 {[%clk 0:02:38.1]} 12. Nxd5 {[%clk 0:02:53.6]} 12... Bg4
{[%clk 0:02:28.8]} 13. Re1 {[%clk 0:02:48.4]} 13... Rac8 {[%clk 0:02:20]} 14.
Rb1 {[%clk 0:02:22.9]} 14... Rfe8 {[%clk 0:02:16.1]} 15. Be3 {[%clk 0:02:14.5]}
15... b6 {[%clk 0:01:50.7]} 16. b3 {[%clk 0:02:13.5]} 16... g5 {[%clk
0:01:41.6]} 17. Qd2 {[%clk 0:02:05.8]} 17... h6 {[%clk 0:01:40]} 18. Rbc1 {[%clk
0:01:40.9]} 18... Bh3 {[%clk 0:01:35.7]} 19. Bf3 {[%clk 0:01:21.1]} 19... Bg4
{[%clk 0:01:34.9]} 20. Bh1 {[%clk 0:01:19.4]} 20... Be6 {[%clk 0:01:23.8]} 21.
Nb4 {[%clk 0:00:52.1]} 21... Ne5 {[%clk 0:01:21.8]} 22. f3 {[%clk 0:00:48.4]}
22... Red8 {[%clk 0:01:16]} 23. Bd4 {[%clk 0:00:46.5]} 23... Qg6 {[%clk
0:00:58.1]} 24. Nd5 {[%clk 0:00:44.9]} 24... Kf8 {[%clk 0:00:41]} 25. Bg2 {[%clk
0:00:39.1]} 25... h5 {[%clk 0:00:38.6]} 26. f4 {[%clk 0:00:33.3]} 26... gxf4
{[%clk 0:00:37.3]} 27. Nxf4 {[%clk 0:00:27.5]} 27... Qh6 {[%clk 0:00:36.4]} 28.
Rf1 {[%clk 0:00:20.6]} 28... Kg8 {[%clk 0:00:31.1]} 29. Qd1 {[%clk 0:00:15.9]}
29... h4 {[%clk 0:00:26.6]} 30. Nxe6 {[%clk 0:00:11.9]} 30... hxg3 {[%clk
0:00:26]} 31. hxg3 {[%clk 0:00:09.7]} 31... fxe6 {[%clk 0:00:17.2]} 32. Rc3
{[%clk 0:00:05.7]} 32... Rf8 {[%clk 0:00:12.4]} 33. Bxe5 {[%clk 0:00:04.7]}
33... Bxe5 {[%clk 0:00:11.9]} 34. Rcf3 {[%clk 0:00:04.6]} 34... Rf6 {[%clk
0:00:09]} 35. Rxf6 {[%clk 0:00:04.4]} 35... Bxf6 {[%clk 0:00:08.8]} 36. Qd3
{[%clk 0:00:03.8]} 36... Rc5 {[%clk 0:00:08.7]} 37. Rf4 {[%clk 0:00:03.6]} 37...
Rg5 {[%clk 0:00:08.2]} 38. Qe4 {[%clk 0:00:03.1]} 38... Rxg3 {[%clk 0:00:07]}
39. Qxe6+ {[%clk 0:00:03.1]} 39... Kg7 {[%clk 0:00:07.5]} 40. Qf5 {[%clk
0:00:02.2]} 40... Rg5 {[%clk 0:00:06.5]} 41. Rg4 {[%clk 0:00:02.3]} 41... Rxg4
{[%clk 0:00:06.2]} 42. Qxg4+ {[%clk 0:00:03.2]} 42... Qg5 {[%clk 0:00:07.1]} 43.
Qxg5+ {[%clk 0:00:03.6]} 43... Bxg5 {[%clk 0:00:08]} 44. Bd5 {[%clk 0:00:04.3]}
44... Kf6 {[%clk 0:00:08.6]} 45. Kg2 {[%clk 0:00:04.5]} 45... Ke5 {[%clk
0:00:09.5]} 46. Kf3 {[%clk 0:00:04.6]} 46... Kd4 {[%clk 0:00:10]} 47. a4 {[%clk
0:00:04.6]} 47... Kc3 {[%clk 0:00:09.3]} 48. e4 {[%clk 0:00:04.5]} 48... Kb4
{[%clk 0:00:09.1]} 49. e5 {[%clk 0:00:03.9]} 49... dxe5 {[%clk 0:00:08.7]} 50.
Ke4 {[%clk 0:00:04.5]} 50... Bf6 {[%clk 0:00:09.2]} 51. Be6 {[%clk 0:00:04.8]}
51... a5 {[%clk 0:00:09.5]} 52. Bd5 {[%clk 0:00:05]} 52... Bh4 {[%clk
0:00:08.9]} 53. Kxe5 {[%clk 0:00:05]} 53... Bf2 {[%clk 0:00:09.4]} 54. c5 {[%clk
0:00:05]} 54... Bxc5 {[%clk 0:00:09.8]} 55. Bc4 {[%clk 0:00:05.2]} 55... Kc3
{[%clk 0:00:10.2]} 56. Ke6 {[%clk 0:00:05.3]} 56... Kd4 {[%clk 0:00:10.5]} 57.
Bd5 {[%clk 0:00:05.7]} 57... Kc3 {[%clk 0:00:09.6]} 58. Bc4 {[%clk 0:00:06]}
58... b5 {[%clk 0:00:09.2]} 59. Bxb5 {[%clk 0:00:05.9]} 59... Kxb3 {[%clk
0:00:10.1]} 60. Bc6 {[%clk 0:00:06.8]} 60... Kb4 {[%clk 0:00:10.2]} 61. Bd7
{[%clk 0:00:07.7]} 61... Bd6 {[%clk 0:00:10.6]} 62. Be8 {[%clk 0:00:08.6]} 62...
Kc5 {[%clk 0:00:10.7]} 63. Bd7 {[%clk 0:00:09.5]} 63... Kb4 {[%clk 0:00:11.6]}
64. Be8 {[%clk 0:00:10.4]} 64... Kc5 {[%clk 0:00:08.4]} 65. Bd7 {[%clk
0:00:11.3]} 65... Kb4 {[%clk 0:00:08.2]} 1/2-1/2

[Event "*** Titled Tuesday Blitz"]
[Site "Chess.com"]
[Date "2020.04.07"]
[Round "4"]
[White "nurgyulsalimova"]
[Black "Tjktiger"]
[Result "0-1"]
[WhiteElo "2559"]
[BlackElo "2856"]
[TimeControl "180+1"]
[EndTime "13:42:03 PDT"]
[Termination "Tjktiger won on time"]

1. d4 {[%clk 0:03:00.9]} 1... Nf6 {[%clk 0:02:57.7]} 2. c4 {[%clk 0:03:00.6]}
2... g6 {[%clk 0:02:57.9]} 3. Nc3 {[%clk 0:03:00.3]} 3... d5 {[%clk 0:02:58.3]}
4. cxd5 {[%clk 0:03:00]} 4... Nxd5 {[%clk 0:02:59.2]} 5. e4 {[%clk 0:02:59.5]}
5... Nxc3 {[%clk 0:02:59.7]} 6. bxc3 {[%clk 0:02:59.5]} 6... Bg7 {[%clk
0:03:00.6]} 7. Nf3 {[%clk 0:02:47.9]} 7... c5 {[%clk 0:03:00.6]} 8. Rb1 {[%clk
0:02:47.7]} 8... O-O {[%clk 0:02:59.3]} 9. Be2 {[%clk 0:02:16.6]} 9... cxd4
{[%clk 0:02:59.1]} 10. cxd4 {[%clk 0:02:15.2]} 10... Qa5+ {[%clk 0:02:59.3]} 11.
Bd2 {[%clk 0:02:07.9]} 11... Qxa2 {[%clk 0:02:59.1]} 12. d5 {[%clk 0:02:03.8]}
12... Bg4 {[%clk 0:02:41.3]} 13. Rxb7 {[%clk 0:02:00.6]} 13... Nd7 {[%clk
0:02:33.1]} 14. O-O {[%clk 0:01:52.7]} 14... Rfb8 {[%clk 0:02:30]} 15. Rxb8+
{[%clk 0:01:19.7]} 15... Rxb8 {[%clk 0:02:29.3]} 16. Bg5 {[%clk 0:01:18.6]}
16... Rb2 {[%clk 0:02:11.1]} 17. Bd3 {[%clk 0:00:43.8]} 17... Ne5 {[%clk
0:02:03]} 18. Bb1 {[%clk 0:00:35.7]} 18... Bxf3 {[%clk 0:00:34.7]} 19. gxf3
{[%clk 0:00:36.6]} 19... Rxb1 {[%clk 0:00:24.1]} 20. Qxb1 {[%clk 0:00:35.3]}
20... Nxf3+ {[%clk 0:00:24.3]} 21. Kg2 {[%clk 0:00:33.3]} 21... Qxb1 {[%clk
0:00:24.3]} 22. Rxb1 {[%clk 0:00:34.2]} 22... Nxg5 {[%clk 0:00:25.2]} 23. Rb8+
{[%clk 0:00:33.5]} 23... Bf8 {[%clk 0:00:25.3]} 24. e5 {[%clk 0:00:32.9]} 24...
Kg7 {[%clk 0:00:21.5]} 25. Ra8 {[%clk 0:00:31.3]} 25... f6 {[%clk 0:00:17.2]}
26. f4 {[%clk 0:00:30.3]} 26... Nf7 {[%clk 0:00:16.6]} 27. e6 {[%clk 0:00:22.6]}
27... Nd6 {[%clk 0:00:15.7]} 28. Rxa7 {[%clk 0:00:22.7]} 28... Nf5 {[%clk
0:00:14.3]} 29. Kf3 {[%clk 0:00:21.2]} 29... h5 {[%clk 0:00:14.7]} 30. h3 {[%clk
0:00:18.1]} 30... Nd6 {[%clk 0:00:14.4]} 31. Rd7 {[%clk 0:00:17.4]} 31... f5
{[%clk 0:00:14]} 32. Ke3 {[%clk 0:00:15.1]} 32... Kf6 {[%clk 0:00:13.5]} 33. Rd8
{[%clk 0:00:13.1]} 33... Bh6 {[%clk 0:00:13.2]} 34. Kf3 {[%clk 0:00:12.5]} 34...
Ne4 {[%clk 0:00:12]} 35. Rh8 {[%clk 0:00:12.2]} 35... Bg7 {[%clk 0:00:09.4]} 36.
Ra8 {[%clk 0:00:11.8]} 36... g5 {[%clk 0:00:08.9]} 37. fxg5+ {[%clk 0:00:11]}
37... Nxg5+ {[%clk 0:00:09.8]} 38. Kg3 {[%clk 0:00:11.2]} 38... Kg6 {[%clk
0:00:09.1]} 39. d6 {[%clk 0:00:10.3]} 39... Be5+ {[%clk 0:00:08.7]} 40. Kg2
{[%clk 0:00:07.3]} 40... Bxd6 {[%clk 0:00:08.8]} 41. Rg8+ {[%clk 0:00:06.8]}
41... Kf6 {[%clk 0:00:09.2]} 42. Rh8 {[%clk 0:00:06.8]} 42... Nxe6 {[%clk
0:00:08.8]} 43. Rh6+ {[%clk 0:00:05.7]} 43... Kf7 {[%clk 0:00:08.3]} 44. Kf3
{[%clk 0:00:05.1]} 44... Ng7 {[%clk 0:00:08.5]} 45. Rh8 {[%clk 0:00:04]} 45...
Be5 {[%clk 0:00:07.3]} 46. Ra8 {[%clk 0:00:03.6]} 46... Bf6 {[%clk 0:00:07.6]}
47. Ra6 {[%clk 0:00:03.7]} 47... Kg6 {[%clk 0:00:07.9]} 48. Ra4 {[%clk
0:00:03.4]} 48... e5 {[%clk 0:00:08.8]} 49. Ra6 {[%clk 0:00:03.6]} 49... e4+
{[%clk 0:00:09.7]} 50. Kf4 {[%clk 0:00:03.9]} 50... h4 {[%clk 0:00:08.9]} 51.
Rc6 {[%clk 0:00:03.4]} 51... Nh5+ {[%clk 0:00:09.3]} 52. Ke3 {[%clk 0:00:04]}
52... Kg5 {[%clk 0:00:09.3]} 53. Rc8 {[%clk 0:00:04.1]} 53... Be5 {[%clk
0:00:08.5]} 54. Rg8+ {[%clk 0:00:04.2]} 54... Bg7 {[%clk 0:00:08.4]} 55. Rc8
{[%clk 0:00:02.6]} 55... Ng3 {[%clk 0:00:08]} 56. Rg8 {[%clk 0:00:02.7]} 56...
Kf6 {[%clk 0:00:07.8]} 0-1